fUST/lending_fUST_20240511
["ID","MTS","AMOUNT","RATE_DAILY","PERIOD"]
[326802806,1715382642033,-200.0,0.00024658,2]
[326802807,1715382642042,-380.0,0.00024658,2]
[326802808,1715382642050,-211.07744848,0.00025,2]
[326802809,1715382642059,-221.09658843,0.00028,2]
[326802810,1715382642068,-154.82968734,0.00028,2]
[326802811,1715382642077,-1103.27161242,0.00028164,2]
[326802812,1715382642086,-1103.27161242,0.0003184,2]
[326802813,1715382642096,-1103.27161242,0.00035516,2]
[326802814,1715382642106,-5390.08,0.00035616,3]
[326802815,1715382642117,-4491.74,0.00035616,3]
[326802816,1715382642126,-3743.11,0.00035616,3]
[326802817,1715382642136,-55555.0,0.000369,5]
[326802818,1715382642146,-10683.97200565,0.00037,5]
[326802819,1715382642155,-4725.10773749,0.00038,30]
[326802820,1715382642165,-620.0000004,0.00041318,15]
[326802821,1715382642174,-4280.05780043,0.00045898,4]
[326802822,1715382642184,-1698.25938138,0.00045899,30]
[326802823,1715382642193,-309.36538946,0.000459,4]
[326802824,1715382642202,-151.0,0.0005,120]
[326802825,1715382642211,-154.6619177,0.00053891,2]
[326802826,1715382642220,-153.0,0.00053891,2]
[326802827,1715382642230,-153.0,0.00053891,2]
[326802828,1715382642239,-153.0,0.00053891,2]
[326802829,1715382642249,-153.0,0.00053891,2]
[326802830,1715382642258,-153.0,0.00053891,2]
[326802831,1715382642267,-153.0,0.00053891,2]
[326802832,1715382642276,-153.0,0.00053891,2]
[326802833,1715382642285,-153.0,0.00053891,2]
[326802834,1715382642294,-153.0,0.00053891,2]
[326802835,1715382642303,-153.0,0.00053891,2]
[326802836,1715382642311,-153.0,0.00053891,2]
[326802837,1715382642321,-153.0,0.00053891,2]
[326802838,1715382642330,-153.0,0.00053891,2]
[326802839,1715382642339,-153.0,0.00053891,2]
[326802840,1715382642348,-153.0,0.00053891,2]
[326802841,1715382642357,-167.8004914,0.00053891,2]
[326802842,1715382642366,-307.6001337,0.00053891,2]
[326802843,1715382642375,-2000.0,0.00054694,2]
[326802844,1715382642385,-178.5,0.000547,30]
[326802845,1715382642394,-151.0,0.000547,50]
[326802846,1715382642403,-500.0,0.00054794,120]
[326802847,1715382642413,-500.0,0.00054794,120]
[326802848,1715382642422,-501.43404919,0.00054794,120]
[326802849,1715382642431,-209.54808692,0.00054794,120]
[326802850,1715382642440,-500.0,0.00054794,120]
[326802851,1715382642450,-500.0,0.00054794,120]
[326802853,1715382642459,-532.91867739,0.00054794,120]
[326802855,1715382642468,-500.0,0.00054794,120]
[326802857,1715382642477,-500.0,0.00054794,120]
[326802859,1715382642488,-392.28124976,0.00054794,120]
[326802860,1715382642497,-500.0,0.00054794,120]
[326802861,1715382642505,-500.0,0.00054794,120]
[326802862,1715382642515,-500.0,0.00054794,120]
[326802863,1715382642523,-500.0,0.00054794,120]
[326802864,1715382642532,-500.0,0.00054794,120]
[326802865,1715382642541,-500.0,0.00054794,120]
[326802866,1715382642550,-500.0,0.00054794,120]
[326802868,1715382642559,-500.0,0.00054794,120]
[326802870,1715382642568,-500.0,0.00054794,120]
[326802872,1715382642580,-500.0,0.00054794,120]
[326802874,1715382642589,-500.0,0.00054794,120]
[326802875,1715382642598,-500.0,0.00054794,120]
[326802877,1715382642606,-500.0,0.00054794,120]
[326802878,1715382642616,-500.0,0.00054794,120]
[326802879,1715382642626,-500.0,0.00054794,120]
[326802880,1715382642635,-503.81461723,0.00054794,120]
[326802881,1715382642644,-500.0,0.00054794,120]
[326802882,1715382642653,-500.0,0.00054794,120]
[326802883,1715382642663,-500.0,0.00054794,120]
[326802885,1715382642673,-500.0,0.00054794,120]
[326802887,1715382642682,-500.0,0.00054794,120]
[326802889,1715382642691,-500.0,0.00054794,120]
[326802891,1715382642700,-500.0,0.00054794,120]
[326802893,1715382642709,-501.92151505,0.00054794,120]
[326802895,1715382642718,-500.0,0.00054794,120]
[326802897,1715382642728,-500.0,0.00054794,120]
[326802898,1715382642742,-500.0,0.00054794,120]
[326802900,1715382642752,-500.0,0.00054794,120]
[326802903,1715382642764,-500.0,0.00054794,120]
[326802905,1715382642774,-500.0,0.00054794,120]
[326802907,1715382642784,-500.0,0.00054794,120]
[326802909,1715382642794,-500.0,0.00054794,120]
[326802910,1715382642804,-500.0,0.00054794,120]
[326802912,1715382642813,-500.0,0.00054794,120]
[326802914,1715382642823,-500.0,0.00054794,120]
[326802916,1715382642833,-500.0,0.00054794,120]
[326802918,1715382642842,-500.0,0.00054794,120]
[326802920,1715382642853,-500.0,0.00054794,120]
[326802922,1715382642862,-500.0,0.00054794,120]
[326802924,1715382642871,-500.0,0.00054794,120]
[326802926,1715382642880,-500.0,0.00054794,120]
[326802928,1715382642889,-500.0,0.00054794,120]
[326802930,1715382642899,-500.0,0.00054794,120]
[326802932,1715382642908,-292.04079477,0.00054794,120]
[326802934,1715382642918,-500.0,0.00054794,120]
[326802936,1715382642927,-500.0,0.00054794,120]
[326802938,1715382642936,-500.0,0.00054794,120]
[326802940,1715382642945,-500.0,0.00054794,120]
[326802942,1715382642954,-500.0,0.00054794,120]
[326802944,1715382642963,-500.0,0.00054794,120]
[326802947,1715382642973,-500.0,0.00054794,120]
[326802950,1715382642986,-500.0,0.00054794,120]
[326802953,1715382642995,-500.0,0.00054794,120]
[326802956,1715382643004,-500.0,0.00054794,120]
[326802959,1715382643013,-624.49,0.00054794,120]
[326802962,1715382643022,-500.0,0.00054794,120]
[326802964,1715382643031,-500.0,0.00054794,120]
[326802966,1715382643040,-500.0,0.00054794,120]
[326802968,1715382643048,-520.99612958,0.00054794,120]
[326802970,1715382643057,-500.0,0.00054794,120]
[326802972,1715382643066,-500.0,0.00054794,120]
[326802974,1715382643075,-500.0,0.00054794,120]
[326802976,1715382643086,-560.23445337,0.00054794,120]
[326802978,1715382643095,-500.0,0.00054794,120]
[326802980,1715382643105,-552.39429381,0.00054794,120]
[326802982,1715382643114,-500.0,0.00054794,120]
[326802985,1715382643123,-500.0,0.00054794,120]
[326802987,1715382643133,-500.0,0.00054794,120]
[326802989,1715382643142,-500.0,0.00054794,7]
[326802991,1715382643152,-500.0,0.00054794,120]
[326802993,1715382643161,-500.0,0.00054794,120]
[326802995,1715382643170,-525.81371058,0.00054794,120]
[326802997,1715382643179,-500.0,0.00054794,120]
[326802998,1715382643189,-500.0,0.00054794,120]
[326802999,1715382643198,-500.0,0.00054794,120]
[326803000,1715382643207,-500.0,0.00054794,120]
[326803001,1715382643216,-500.0,0.00054794,120]
[326803002,1715382643225,-500.0,0.00054794,120]
[326803003,1715382643238,-548.87,0.00054794,120]
[326803004,1715382643247,-500.0,0.00054794,120]
[326803005,1715382643256,-500.0,0.00054794,120]
[326803006,1715382643265,-500.0,0.00054794,120]
[326803007,1715382643274,-500.0,0.00054794,120]
[326803009,1715382643283,-562.4596636,0.00054794,120]
[326803011,1715382643291,-500.0,0.00054794,120]
[326803013,1715382643301,-500.0,0.00054794,120]
[326803014,1715382643310,-500.0,0.00054794,120]
[326803015,1715382643319,-500.0,0.00054794,120]
[326803016,1715382643329,-500.0,0.00054794,120]
[326803017,1715382643338,-500.0,0.00054794,60]
[326803018,1715382643347,-500.0,0.00054794,120]
[326803019,1715382643357,-500.0,0.00054794,7]
[326803020,1715382643366,-500.0,0.00054794,120]
[326803021,1715382643375,-500.0,0.00054794,120]
[326803022,1715382643384,-500.0,0.00054794,120]
[326803023,1715382643393,-500.0,0.00054794,120]
[326803024,1715382643403,-500.0,0.00054794,120]
[326803025,1715382643412,-500.0,0.00054794,120]
[326803026,1715382643421,-500.0,0.00054794,120]
[326803027,1715382643430,-648.42968882,0.00054794,120]
[326803028,1715382643440,-500.0,0.00054794,120]
[326803029,1715382643449,-500.0,0.00054794,120]
[326803031,1715382643459,-500.0,0.00054794,120]
[326803033,1715382643468,-500.0,0.00054794,120]
[326803035,1715382643477,-200.85840953,0.00054794,120]
[326803037,1715382643488,-500.0,0.00054794,120]
[326803039,1715382643497,-847.64,0.00054794,120]
[326803041,1715382643507,-500.0,0.00054794,120]
[326803043,1715382643516,-500.0,0.00054794,120]
[326803045,1715382643525,-500.0,0.00054794,120]
[326803047,1715382643535,-500.0,0.00054794,120]
[326803049,1715382643544,-12444.13,0.00054794,120]
[326803051,1715382643553,-500.0,0.00054794,120]
[326803053,1715382643562,-500.0,0.00054794,120]
[326803055,1715382643572,-2455.58,0.00054794,120]
[326803057,1715382643582,-500.0,0.00054794,120]
[326803059,1715382643596,-500.0,0.00054794,120]
[326803061,1715382643606,-500.0,0.00054794,120]
[326803064,1715382643615,-500.0,0.00054794,120]
[326803065,1715382643624,-500.0,0.00054794,120]
[326803067,1715382643635,-500.0,0.00054794,120]
[326803069,1715382643644,-500.0,0.00054794,21]
[326803071,1715382643654,-500.0,0.00054794,120]
[326803073,1715382643664,-500.0,0.00054794,120]
[326803075,1715382643673,-500.0,0.00054794,120]
[326803077,1715382643683,-500.0,0.00054794,120]
[326803078,1715382643692,-500.0,0.00054794,120]
[326803080,1715382643702,-500.0,0.00054794,120]
[326803082,1715382643711,-500.0,0.00054794,120]
[326803084,1715382643720,-502.85675346,0.00054794,120]
[326803086,1715382643730,-500.0,0.00054794,120]
[326803088,1715382643741,-500.0,0.00054794,120]
[326803090,1715382643750,-500.0,0.00054794,120]
[326803092,1715382643761,-2321.76,0.00054794,120]
[326803094,1715382643770,-500.0,0.00054794,120]
[326803096,1715382643779,-500.0,0.00054794,120]
[326803098,1715382643789,-500.0,0.00054794,120]
[326803100,1715382643798,-500.0,0.00054794,2]
[326803102,1715382643808,-500.0,0.00054794,120]
[326803104,1715382643817,-12909.17,0.00054794,120]
[326803106,1715382643826,-500.0,0.00054794,120]
[326803108,1715382643836,-500.0,0.00054794,120]
[326803110,1715382643845,-500.0,0.00054794,120]
[326803112,1715382643854,-500.0,0.00054794,120]
[326803114,1715382643864,-500.0,0.00054794,120]
[326803116,1715382643873,-500.0,0.00054794,120]
[326803118,1715382643882,-500.0,0.00054794,120]
[326803120,1715382643891,-500.0,0.00054794,120]
[326803122,1715382643902,-500.0,0.00054794,120]
[326803124,1715382643911,-500.0,0.00054794,120]
[326803126,1715382643921,-500.0,0.00054794,120]
[326803128,1715382643930,-500.0,0.00054794,120]
[326803130,1715382643940,-500.0,0.00054794,120]
[326803131,1715382643949,-500.0,0.00054794,120]
[326803133,1715382643959,-500.0,0.00054794,120]
[326803135,1715382643968,-500.0,0.00054794,120]
[326803137,1715382643977,-500.0,0.00054794,120]
[326803139,1715382643987,-500.0,0.00054794,120]
[326803141,1715382643997,-500.0,0.00054794,120]
[326803143,1715382644006,-500.0,0.00054794,120]
[326803145,1715382644016,-500.0,0.00054794,120]
[326803147,1715382644026,-500.0,0.00054794,120]
[326803149,1715382644035,-500.0,0.00054794,120]
[326803151,1715382644044,-500.0,0.00054794,120]
[326803153,1715382644054,-500.0,0.00054794,120]
[326803155,1715382644064,-500.0,0.00054794,120]
[326803157,1715382644074,-510.19476116,0.00054794,120]
[326803159,1715382644084,-500.0,0.00054794,120]
[326803161,1715382644093,-500.0,0.00054794,120]
[326803163,1715382644103,-500.0,0.00054794,120]
[326803165,1715382644112,-151.0,0.00054794,120]
[326803167,1715382644122,-500.0,0.00054794,120]
[326803169,1715382644132,-522.11092335,0.00054794,120]
[326803171,1715382644142,-500.0,0.00054794,120]
[326803173,1715382644152,-500.0,0.00054794,120]
[326803175,1715382644162,-231.83987639,0.00054794,120]
[326803178,1715382644178,-268.16012361,0.00054794,120]
[326803180,1715382644188,-232.9360469,0.00054794,120]
[326803197,1715382644355,-267.0639531,0.00054794,120]
[326803200,1715382644364,-500.0,0.00054794,120]
[326803203,1715382644374,-500.0,0.00054794,120]
[326803206,1715382644383,-500.0,0.00054794,120]
[326803209,1715382644393,-500.0,0.00054794,120]
[326803212,1715382644402,-500.0,0.00054794,120]
[326803214,1715382644412,-500.0,0.00054794,120]
[326803217,1715382644421,-500.0,0.00054794,120]
[326803220,1715382644431,-500.0,0.00054794,120]
[326803223,1715382644440,-500.0,0.00054794,120]
[326803226,1715382644450,-2713.63,0.00054794,120]
[326803228,1715382644460,-500.0,0.00054794,120]
[326803230,1715382644469,-500.0,0.00054794,120]
[326803232,1715382644479,-500.0,0.00054794,120]
[326803235,1715382644489,-500.0,0.00054794,120]
[326803237,1715382644498,-227.86219266,0.00054794,120]
[326803239,1715382644511,-255.03338892,0.00054794,120]
[326803471,1715382753134,154.8915759,9.999e-05,2]
[326803472,1715382769371,154.8915759,9.999e-05,2]
[326803479,1715382872142,309.41211698,0.00015,2]
[326803480,1715382888233,178.35181734,9.999e-05,2]
[326803481,1715382928341,-180.0,0.00017999,2]
[326803482,1715382942315,309.41211698,0.000136,2]
[326803905,1715383154817,3264.47535035,9.999e-05,2]
[326803907,1715383328544,941.02505706,0.00015,2]
[326803909,1715383394228,154.87609912,9.999e-05,2]
[326803912,1715383563388,178.39904819,0.00014978,2]
[326803920,1715383707922,-620.0,0.00015068,2]
[326803972,1715383834756,-471.97742827,0.00015062,2]
[326803974,1715383834770,-3929.39279019,0.00015062,2]
[326803976,1715383834781,-11295.97495428,0.00015062,2]
[326803978,1715383834791,-154.8915759,0.00015063,2]
[326803980,1715383834800,-2674.97171764,0.00015063,2]
[326803982,1715383834810,-2104.72344677,0.00015064,2]
[326803984,1715383834819,-929.9125183,0.00015085,2]
[326803985,1715383834829,-271.587833,0.00015542,2]
[326803987,1715383834838,-940.4643629,0.00015879,2]
[326803989,1715383834848,-374.985027,0.0001589,2]
[326803991,1715383834857,-172.857454,0.0001589,2]
[326803992,1715383834866,-273.52788847,0.000165,2]
[326803994,1715383834875,-713.0309286,0.00017,2]
[326803996,1715383834885,-15480.39302462,0.00017448,2]
[326804080,1715383839563,-9150.0,0.00017448,2]
[326804267,1715383844417,-269.60697538,0.00017448,2]
[326804269,1715383844428,-247.82788232,0.00017995,2]
[326804271,1715383844440,-1354.01618233,0.00017995,2]
[326804273,1715383844452,-894.51331095,0.00018,2]
[326804275,1715383844463,-1874.98615913,0.000184,2]
[326804277,1715383844474,-604.78532662,0.000185,2]
[326804280,1715383844485,-1639.74082504,0.000189,2]
[326804283,1715383844495,-176.5353836,0.00019178,2]
[326804286,1715383844506,-519.30108536,0.00019485,2]
[326804289,1715383844517,-177.840884,0.00019637,2]
[326804292,1715383844527,-799.9820388,0.0002,2]
[326804295,1715383844538,-159.57339764,0.0002091,2]
[326804298,1715383844548,-154.90676553,0.00020911,2]
[326804300,1715383844558,-172.79288113,0.00020912,2]
[326804302,1715383844569,-163.84293533,0.00020912,2]
[326804304,1715383844579,-468.91867687,0.00020912,2]
[326804307,1715383844590,-584.11436245,0.00020912,2]
[326804309,1715383844600,-2505.99432962,0.00020912,2]
[326804311,1715383844610,-1881.78834853,0.00020912,2]
[326804313,1715383844620,-2395.29274351,0.00020912,2]
[326804315,1715383844631,-281.48040967,0.00020912,2]
[326804317,1715383844642,-314.26273319,0.00020912,2]
[326804319,1715383844652,-904.02671606,0.00020912,2]
[326804321,1715383844663,-292.18119126,0.00020912,2]
[326804324,1715383844674,-411.82401176,0.00020912,2]
[326804326,1715383844684,-5816.81570014,0.00020912,2]
[326804328,1715383844694,-525.97440028,0.00020912,2]
[326804330,1715383844704,-473.60917883,0.00020912,2]
[326804332,1715383844715,-206.61730233,0.00020912,2]
[326804334,1715383844725,-412.60897844,0.00020912,2]
[326804336,1715383844735,-1092.69843081,0.00020912,2]
[326804338,1715383844746,-159.1475957,0.00020912,2]
[326804341,1715383844757,-474.60000088,0.00020912,2]
[326804343,1715383844770,-2785.94337812,0.00020912,2]
[326804345,1715383844780,-1344.84373992,0.00020912,2]
[326804347,1715383844790,-500.0,0.00020913,2]
[326804349,1715383844801,-166.666667,0.00021918,2]
[326804351,1715383844811,-166.666666,0.00021918,2]
[326804353,1715383844822,-5229.71545665,0.00022,2]
[326804355,1715383844833,-170.91358819,0.00022,2]
[326804357,1715383844843,-159.4535182,0.00022,2]
[326804359,1715383844854,-374.985027,0.00022264,2]
[326804362,1715383844864,-166.666666,0.00022431,2]
[326804364,1715383844875,-166.666666,0.00022944,2]
[326804366,1715383844885,-154.91941743,0.00023,2]
[326804368,1715383844895,-714.97924015,0.00023,2]
[326804370,1715383844906,-271.587833,0.00023313,2]
[326804372,1715383844916,-166.666666,0.00023456,2]
[326804374,1715383844927,-1639.74082504,0.000239,2]
[326804375,1715383844937,-166.666666,0.00023969,2]
[326804376,1715383844948,-166.666666,0.00024482,2]
[326804377,1715383844959,-339.81585699,0.000266,2]
[326804786,1715383952498,744.79730554,0.000138,2]
[326804787,1715383956215,2630.79585312,9.999e-05,2]
[326804789,1715384199915,-166.75652513,0.00015789,2]
[326804791,1715384434820,154.90705577,9.999e-05,2]
[326804797,1715385001384,154.90705577,9.999e-05,2]
[326804798,1715385019587,194.1642929,9.999e-05,2]
[326804823,1715385032155,-1894.91130728,0.00015199,2]
[326804824,1715385032172,-15697.34517274,0.000152,2]
[326804825,1715385032187,-204.94636995,0.00015205,2]
[326804826,1715385032200,-250.0,0.00015216,2]
[326804828,1715385032212,-1287.90487086,0.0001579,2]
[326804831,1715385032227,-200.43617464,0.00015812,2]
[326804833,1715385032239,-24900.0,0.00015813,2]
[326804835,1715385032253,-168.009319,0.0001589,2]
[326804838,1715385032266,-1966.12344812,0.000176,2]
[326804840,1715385032280,-236.00965182,0.00017604,2]
[326804841,1715385032294,-242.5393827,0.00017605,2]
[326804842,1715385032310,-1499.98892728,0.000188,2]
[326804843,1715385032323,-546.58027501,0.000189,2]
[326804844,1715385032335,-180.543101,0.00019178,2]
[326804845,1715385032348,-1499.98892727,0.00019303,2]
[326804846,1715385032367,-1731.47600472,0.00019653,2]
[326804847,1715385032380,-1499.98892727,0.00019805,2]
[326804848,1715385032394,-487.11573812,0.00019896,2]
[326804849,1715385032407,-743.70369611,0.00019897,2]
[326804850,1715385032417,-500.0,0.00019897,2]
[326804851,1715385032429,-500.0,0.00019897,2]
[326804852,1715385032442,-579.9181323,0.00019897,2]
[326804853,1715385032456,-340.45679502,0.00019897,2]
[326804854,1715385032469,-33965.53626743,0.00019898,2]
[326804855,1715385032481,-500.0,0.00019999,2]
[326804856,1715385032495,-500.0,0.00019999,2]
[326804857,1715385032509,-500.0,0.00019999,2]
[326804858,1715385032523,-500.0,0.00019999,2]
[326804859,1715385032536,-500.0,0.00019999,2]
[326804860,1715385032546,-424.22270907,0.00019999,2]
[326804861,1715385032559,-500.0,0.00019999,2]
[326804862,1715385032570,-500.0,0.00019999,2]
[326804863,1715385032583,-500.0,0.00019999,2]
[326804864,1715385032597,-380.05955451,0.0002,2]
[326804865,1715385032610,-56819.92057586,0.0002,2]
[326804866,1715385032623,-7381.31355228,0.0002,2]
[326804908,1715385038195,-490.45502067,0.00015198,2]
[326804975,1715385040273,19221.69193316,9.999e-05,2]
[326804976,1715385040431,-1614.2684261,0.00015198,2]
[326804977,1715385040443,-7357.9449717,0.00015198,2]
[326804991,1715385046276,-3673.91723226,0.00015198,2]
[326804992,1715385046286,-2674.97171764,0.00015199,2]
[326804993,1715385046296,-1894.91130728,0.00015811,2]
[326804994,1715385046307,-193.02870977,0.00019804,2]
[326804995,1715385046317,-11536.40926064,0.00019999,2]
[326804996,1715385046326,-15798.76587186,0.0002,2]
[326804997,1715385046336,-67521.8836984,0.0002,2]
[326804998,1715385046345,-1499.98892727,0.00020308,2]
[326804999,1715385046356,-1499.98892727,0.0002081,2]
[326805000,1715385046369,-9731.9854948,0.00020907,2]
[326805001,1715385046378,-472.55591663,0.0002091,2]
[326805002,1715385046387,-217.24571285,0.0002091,2]
[326805003,1715385046397,-853.71939078,0.0002091,2]
[326805004,1715385046406,-446.47903035,0.0002091,2]
[326805005,1715385046415,-894.51331095,0.00020911,2]
[326805006,1715385046425,-604.78532662,0.00020912,2]
[326805007,1715385046434,-414.34044164,0.00020912,2]
[326805009,1715385046445,-2396.15219991,0.00020912,2]
[326805010,1715385046454,-3571.59570442,0.00020912,2]
[326805012,1715385046463,-166.666666,0.00021918,2]
[326805013,1715385046473,-306.31569428,0.00022,2]
[326805016,1715385074169,2314.00821491,9.999e-05,2]
[326805086,1715385478093,930.17254207,0.00014,2]
[326805100,1715385607757,1465.79568205,0.0001,2]
[326805112,1715385638016,2084.90379946,0.0001,2]
[326805113,1715385640061,227.13933267,0.0001,2]
[326805115,1715385650724,16108.00888911,0.0001,2]
[326805116,1715385652245,880.22323369,0.0001,2]
[326805121,1715385695994,2084.90379946,0.0001,2]
[326805123,1715385717990,2084.90379946,0.0001,2]
[326805124,1715385752019,2086.67556332,0.0001,2]
[326805125,1715385782001,2086.67556332,0.0001,2]
[326805126,1715385806006,2081.36027174,0.0001,2]
[326805127,1715385824443,2086.67556332,0.0001,2]
[326805129,1715385842138,2086.67556332,0.0001,2]
[326805131,1715385878012,1296.32342244,0.0001,2]
[326805150,1715385934563,484.08142548,9.999e-05,2]
[326805153,1715386081703,1882.81807245,9.999e-05,2]
[326805207,1715386232404,-363.415142,0.0001589,2]
[326805209,1715386232413,-549.83088537,0.00018682,2]
[326805212,1715386232427,-2125.14083227,0.00018682,2]
[326805214,1715386232436,-2104.72344677,0.00018683,2]
[326805217,1715386232445,-254.163564,0.00018688,2]
[326805220,1715386232455,-189.33595798,0.00018694,2]
[326805222,1715386232464,-165.91470775,0.00018799,2]
[326805225,1715386232473,-10420.0,0.00018898,2]
[326805227,1715386232483,-461.93058516,0.000189,2]
[326805230,1715386232493,-783.6835952,0.00018979,2]
[326805233,1715386232502,-183.943678,0.00019178,2]
[326805235,1715386232512,-5298.3062368,0.000192,2]
[326805238,1715386232522,-927.82809306,0.00019863,2]
[326805241,1715386232531,-1126.91676202,0.00020811,2]
[326805243,1715386232540,-215.55193554,0.00020812,2]
[326805245,1715386232550,-894.51331095,0.00020909,2]
[326805247,1715386232559,-483.8406567,0.00020909,2]
[326805249,1715386232568,-816.97434546,0.00020909,2]
[326805251,1715386232578,-912.76639316,0.00020909,2]
[326805253,1715386232587,-284.55118921,0.00020909,2]
[326805255,1715386232596,-3057.36000381,0.00020909,2]
[326805257,1715386232605,-744.57696609,0.0002091,2]
[326805259,1715386232614,-891.52667903,0.00020911,2]
[326805261,1715386232624,-2453.40430644,0.00020911,2]
[326805263,1715386232633,-2483.52761167,0.00020911,2]
[326805311,1715386238321,-1465.79568205,0.00015889,2]
[326805313,1715386238330,-4616.40431795,0.00020911,2]
[326805315,1715386238343,-6666.28546131,0.00020911,2]
[326805319,1715386238384,-4718.2071591,0.00020911,2]
[326805385,1715386241678,-1944.62614206,0.00020911,2]
[326805386,1715386242085,-13822.45505555,0.00020911,2]
[326805424,1715386852806,1465.79568205,0.0001,2]
[326805426,1715386896645,484.08142548,9.999e-05,2]
[326805526,1715387312589,-150.0,0.00015886,2]
[326805546,1715387432544,-559.45431183,0.00015879,2]
[326805547,1715387432556,-1323.36376062,0.00015879,2]
[326805548,1715387432565,-11031.86220396,0.0001588,2]
[326805549,1715387432574,-2674.97171764,0.00015881,2]
[326805550,1715387432583,-1465.79568205,0.00015882,2]
[326805551,1715387432592,-168.009319,0.0001589,2]
[326805552,1715387432602,-2104.72344677,0.00016514,2]
[326805553,1715387432611,-3057.36000381,0.00016515,2]
[326805554,1715387432620,-179.9820388,0.00016515,2]
[326805555,1715387432629,-412.83760204,0.00016515,2]
[326805556,1715387432638,-527.71870107,0.00016516,2]
[326805557,1715387432647,-24900.0,0.00016517,2]
[326805558,1715387432657,-986.05216675,0.00017064,2]
[326805559,1715387432666,-265.300709,0.0001717,2]
[326805560,1715387432675,-165.35574482,0.00017769,2]
[326805562,1715387432684,-334.30136498,0.00017898,2]
[326805564,1715387432693,-409.89041285,0.00017899,2]
[326805565,1715387432702,-251.29027744,0.00018792,2]
[326805567,1715387432711,-220.65432249,0.000188,2]
[326805568,1715387432720,-10420.0,0.00018892,2]
[326805569,1715387432729,-307.95372344,0.000189,2]
[326805570,1715387432739,-177.429562,0.00019178,2]
[326805571,1715387432748,-165.35574482,0.0001929,2]
[326805573,1715387432757,-251.29027742,0.00019802,2]
[326805574,1715387432766,-140.41793448,0.00019999,2]
[326805583,1715387432882,-158.45068085,0.00019999,2]
[326805584,1715387432891,-500.0,0.00019999,2]
[326805585,1715387432901,-389.79431915,0.00019999,2]
[326805586,1715387432912,-110.20568085,0.00019999,2]
[326805587,1715387432922,-327.26681272,0.00019999,2]
[326805588,1715387432931,-22267.59161976,0.0002,2]
[326805589,1715387432940,-20803.75902166,0.0002,2]
[326805746,1715387440803,-200.0,0.00019999,2]
[326805747,1715387440813,-246.65452548,0.00019999,2]
[326805748,1715387440822,-2871.91503506,0.0002,2]
[326806147,1715387446638,-317.34276163,0.00019998,2]
[326806499,1715387512559,1336.81700769,9.999e-05,2]
[326806500,1715387522024,186.62571484,9.999e-05,2]
[326806501,1715387677228,718.98711623,9.999e-05,2]
[326806503,1715388115568,186.62571484,9.999e-05,2]
[326806504,1715388291524,1465.79568205,0.0001,2]
[326806507,1715388423256,284.55118921,9.999e-05,2]
[326806527,1715388631946,-510.97209948,0.00016989,2]
[326806528,1715388632003,-826.65721377,0.00016989,2]
[326806529,1715388632014,-767.09413352,0.00016989,2]
[326806530,1715388632023,-1465.79568205,0.0001699,2]
[326806531,1715388632033,-713.0309286,0.00017,2]
[326806532,1715388632042,-288.53731085,0.0001728,2]
[326806533,1715388632051,-3057.36000381,0.0001728,2]
[326806534,1715388632060,-178.20761152,0.00017281,2]
[326806535,1715388632069,-6952.21942949,0.00017281,2]
[326806536,1715388632078,-24900.0,0.00017282,2]
[326806537,1715388632087,-268.444271,0.0001752,2]
[326806538,1715388632100,-224.98434684,0.0001781,2]
[326806539,1715388632109,-816.97434546,0.0001781,2]
[326806540,1715388632119,-940.4643629,0.00017811,2]
[326806541,1715388632128,-205.3024823,0.000189,2]
[326806542,1715388632137,-183.943678,0.00019178,2]
[326806543,1715388632146,-1516.89789456,0.00019896,2]